bitfinex/quotes_SOLUSD_20240814
["timestamp","ask_amount","ask_price","bid_price","bid_amount"]
[1723599523164,32.16,144.91,144.87,24.1591]
[1723599523367,32.16,144.91,144.87,17.2564]
[1723599523368,0.66682792,144.9,144.87,17.2564]
[1723599523884,0.12549,144.89,144.86,6.9032]
[1723599524190,0.79231792,144.89,144.84,24.1637]
[1723599524484,32.95231792,144.89,144.84,24.1637]
[1723599524687,32.16,144.85,144.81,6.9055]
[1723599524887,0.66682792,144.84,144.79,15.5398]
[1723599525257,0.66682792,144.84,144.81,6.9051]
[1723599525469,0.66682792,144.84,144.8,6.9059]
[1723599525674,0.66682792,144.84,144.81,6.9055]
[1723599525876,0.66682792,144.84,144.8,17.2641]
[1723599526072,0.66682792,144.84,144.8,24.1697]
[1723599526275,0.66682792,144.84,144.81,6.9055]
[1723599527875,45.66682792,144.84,144.81,6.9055]
[1723599528077,20.06466857,144.91,144.77,6.4144]
[1723599528078,7.56862792,144.89,144.84,6.9039]
[1723599528266,32.16,144.9,144.88,6.9022]
[1723599528464,32.16,144.92,144.89,6.9014]
[1723599528778,7.0528302,144.93,144.9,6.9011]
[1723599528983,7.0528302,144.93,144.91,6.9007]
[1723599529298,0.8182302,144.93,144.91,6.9007]
[1723599529866,0.8182302,144.93,144.92,6.9003]
[1723599530083,0.8182302,144.93,144.91,24.1521]
[1723599530285,0.8182302,144.93,144.91,17.2513]
[1723599530996,0.8182302,144.93,144.92,6.9003]
[1723599536604,0.8182302,144.93,144.91,17.2513]
[1723599537470,0.8182302,144.93,144.92,6.9003]
[1723599538197,0.8182302,144.93,144.92,8.28030422]
[1723599538587,0.8182302,144.93,144.92,6.9003]
[1723599541098,0.8182302,144.93,144.92,8.28023153]
[1723599542076,0.8182302,144.93,144.92,6.9003]
[1723599544589,0.8182302,144.93,144.92,8.28023315]
[1723599546184,0.8182302,144.93,144.92,34.88740533]
[1723599546387,0.8182302,144.93,144.92,33.63329]
[1723599546575,40.05,145.06,145.0,6.8962]
[1723599546997,6.8947,145.04,144.99,24.1387]
[1723599547378,6.8943,145.05,145.0,6.8965]
[1723599548204,0.66682792,145.05,144.99,17.2418]
[1723599548381,40.05,145.02,144.92,26.6075]
[1723599548591,0.12549,144.99,144.94,6.8993]
[1723599548914,7.02279,144.99,144.94,6.8993]
[1723599549209,6.8975,144.98,144.94,6.8993]
[1723599549400,6.8975,144.98,144.93,17.2492]
[1723599549401,6.898,144.97,144.93,17.2492]
[1723599549590,6.898,144.97,144.93,24.149]
[1723599549799,47.07299,144.98,144.93,24.149]
[1723599549997,0.12549,144.97,144.93,24.149]
[1723599550377,6.8966,145.0,144.95,24.1454]
[1723599551314,6.8966,145.0,144.96,6.8983]
[1723599551610,38.9261,145.01,144.96,6.8983]
[1723599551804,0.12549,145.0,144.96,6.8983]
[1723599552597,0.12549,145.0,144.97,6.8978]
[1723599552795,45.25098,145.01,144.97,6.8978]
[1723599553109,45.0,145.01,144.97,6.8978]
[1723599553316,21.8106,145.04,144.98,6.8973]
[1723599553317,6.8952,145.03,144.98,6.8973]
[1723599553490,40.02,145.04,144.97,17.2441]
[1723599553682,46.915,145.04,144.99,6.8969]
[1723599554514,6.8961,145.01,144.97,24.1419]
[1723599554718,6.8957,145.02,144.98,6.8974]
[1723599555019,6.8953,145.03,144.97,17.2441]
[1723599555308,6.8951,145.03,144.98,6.8973]
[1723599556898,0.12549,145.02,144.98,6.8973]
[1723599557213,85.52196,145.02,144.94,17.2479]
[1723599557417,6.8985,144.96,144.91,23.5191]
[1723599557586,46.9175,144.98,144.94,6.8993]
[1723599557785,40.02,144.98,144.94,6.8993]
[1723599558022,46.9175,144.98,144.94,6.8993]
[1723599558204,40.02,144.98,144.94,6.8993]
[1723599558894,46.9175,144.98,144.93,6.8998]
[1723599559118,0.12549,144.97,144.93,6.8998]
[1723599559615,7.14898,144.97,144.92,6.9003]
[1723599559789,52.27447,144.97,144.92,6.9003]
[1723599560824,7.02479,144.95,144.9,22.0682]
[1723599561116,0.25098,144.94,144.9,6.9012]
[1723599561343,45.25098,144.94,144.9,6.9012]
[1723599561502,45.25098,144.94,144.91,6.9007]
[1723599561829,40.02,144.96,144.92,6.9002]
[1723599562005,40.02,144.96,144.87,22.0217]
[1723599562006,0.12549,144.96,144.93,6.8998]
[1723599562193,0.25098,144.96,144.93,6.8998]
[1723599562628,45.12549,144.97,144.94,6.8991]
[1723599562828,40.02,144.98,144.93,17.2488]
[1723599563127,62.2277,145.0,144.95,6.8988]
[1723599563715,62.2277,145.0,144.93,17.2488]
[1723599563716,6.8974,144.99,144.94,6.8993]
[1723599563903,6.8978,144.98,144.93,17.2488]
[1723599564098,6.8978,144.98,144.91,6.9007]
[1723599564099,6.8985,144.96,144.91,6.9007]
[1723599564302,6.899,144.95,144.9,6.9012]
[1723599564510,6.899,144.95,144.91,6.9008]
[1723599564712,7.14898,144.97,144.92,6.9002]
[1723599565045,45.25098,144.96,144.92,6.9002]
[1723599565212,0.12549,144.95,144.92,6.9002]
[1723599566729,0.25098,144.95,144.9,24.154]
[1723599566936,6.9002,144.93,144.87,22.0217]
[1723599567104,0.12549,144.93,144.89,6.9017]
[1723599567305,45.37647,144.93,144.89,6.9017]
[1723599567599,7.69271792,144.92,144.88,17.255]
[1723599568018,7.02589,144.92,144.88,24.1572]
[1723599568206,0.12549,144.92,144.88,24.1572]
[1723599568408,52.27637,144.93,144.87,15.4205]
[1723599568409,45.37647,144.93,144.91,17.252]
[1723599568626,32.553,145.0,144.91,24.1527]
[1723599568627,6.8986,144.96,144.91,24.1527]
[1723599568831,6.8991,144.95,144.91,17.252]
[1723599569012,6.8985,144.96,144.91,24.1528]
[1723599569333,6.8985,144.96,144.92,6.9003]
[1723599569524,6.8985,144.96,144.91,24.1527]
[1723599569916,45.37647,144.95,144.91,24.1527]
[1723599570123,0.12549,144.95,144.91,17.252]
[1723599570322,7.02399,144.96,144.91,17.252]
[1723599571142,7.02399,144.96,144.91,24.1524]
[1723599571512,0.12549,144.95,144.91,24.1524]
[1723599572309,7.15008,144.95,144.91,17.252]
[1723599572516,0.66682792,144.94,144.91,17.252]
[1723599573331,7.15008,144.95,144.91,17.252]
[1723599573541,7.15008,144.95,144.9,6.9012]
[1723599573542,0.12549,144.93,144.87,15.4205]
[1723599573905,0.25098,144.93,144.87,15.4205]
[1723599574133,7.15118,144.93,144.88,6.9021]
[1723599576449,45.12549,144.92,144.88,6.9021]
[1723599577247,45.12549,144.92,144.89,6.9017]
[1723599577636,45.12549,144.92,144.87,32.6762]
[1723599577819,0.12549,144.92,144.87,32.6762]
[1723599578263,45.25098,144.93,144.9,6.9013]
[1723599578551,45.12549,144.93,144.9,6.9013]
[1723599578734,0.12549,144.93,144.9,6.9013]
[1723599579249,0.25098,144.93,144.89,17.2539]
[1723599579440,45.37647,144.93,144.89,17.2539]
[1723599580954,52.27667,144.93,144.89,17.2539]
[1723599581147,6.9003,144.92,144.87,22.3231]
[1723599581346,45.37647,144.93,144.88,6.9021]
[1723599581347,52.27637,144.93,144.88,6.9021]
[1723599581531,52.94319792,144.93,144.88,6.9021]
[1723599582138,52.27637,144.93,144.88,6.9021]
[1723599583048,0.12549,144.91,144.87,6.9026]
[1723599583254,0.37647,144.91,144.87,6.9026]
[1723599583558,0.12549,144.89,144.86,17.2574]
[1723599583733,0.91780792,144.89,144.86,17.2574]
[1723599584241,0.91780792,144.89,144.86,24.1605]
[1723599584242,45.25098,144.89,144.86,24.1605]
[1723599589458,32.05,144.9,144.86,24.1605]
[1723599590043,38.9514,144.9,144.86,24.1605]
[1723599590243,38.9514,144.9,144.86,17.2574]
[1723599590655,45.50196,144.89,144.86,17.2574]
[1723599591451,0.12549,144.88,144.84,6.904]
[1723599592040,52.27837,144.89,144.87,6.9023]
[1723599592041,45.12549,144.89,144.87,6.9023]
[1723599592254,32.05,144.9,144.87,6.9023]
[1723599593160,15.7725,144.93,144.87,17.2558]
[1723599593364,45.12549,144.92,144.89,6.9016]
[1723599593665,38.9498,144.94,144.89,6.9016]
[1723599593868,6.8999,144.93,144.89,6.9016]
[1723599594165,6.8999,144.93,144.88,6.9021]
[1723599594667,0.12549,144.92,144.88,6.9021]
[1723599594851,0.25098,144.92,144.88,6.9021]
[1723599595241,0.25098,144.92,144.89,6.9016]
[1723599595660,7.15148,144.92,144.88,6.9021]
[1723599595963,7.15148,144.92,144.87,24.1584]
[1723599596268,7.15148,144.92,144.88,6.9021]
[1723599596637,7.15148,144.92,144.87,24.1582]
[1723599596638,6.9009,144.91,144.87,24.1582]
[1723599596855,0.25098,144.92,144.87,24.1582]
[1723599597168,7.15138,144.92,144.87,24.1582]
[1723599597662,7.15138,144.92,144.88,6.9021]
[1723599598032,7.15138,144.92,144.87,24.1584]
[1723599599182,45.0,144.93,144.88,1.38043693]
[1723599599347,6.8995,144.94,144.89,6.9016]
[1723599601170,0.12549,144.92,144.87,17.2558]
[1723599601559,6.9007,144.92,144.88,6.9022]
[1723599601758,6.9007,144.92,144.87,24.1584]
[1723599602674,51.15074903,144.97,144.88,1.38037365]
[1723599602889,7.02429,144.96,144.91,6.9004]
[1723599603251,6.8991,144.95,144.91,6.9004]
[1723599603889,0.12549,144.96,144.9,6.9012]
[1723599603890,6.8994,144.94,144.9,6.9012]
[1723599604258,7.02539,144.93,144.89,17.2536]
[1723599604549,6.9004,144.92,144.89,17.2536]
[1723599605281,7.02529,144.93,144.89,24.1553]
[1723599606475,7.02529,144.93,144.89,17.2536]
[1723599607479,7.02589,144.92,144.87,6.9026]
[1723599607852,12.82,144.91,144.87,6.9026]
[1723599608358,12.82,144.89,144.85,6.1521]
[1723599608679,19.7218,144.89,144.85,13.0557]
[1723599608885,12.82,144.89,144.85,6.9036]
[1723599609180,7.02769,144.88,144.84,6.904]
[1723599609476,7.02769,144.88,144.83,22.0413]
[1723599609477,0.12549,144.88,144.83,22.0413]
[1723599609681,12.82,144.87,144.83,22.0413]
[1723599609882,0.12549,144.88,144.84,6.904]
[1723599610587,52.15328,144.88,144.84,6.904]
[1723599610759,52.27877,144.88,144.84,6.904]
[1723599613588,45.37647,144.88,144.85,6.9035]
[1723599613879,0.25098,144.88,144.85,6.9035]
[1723599616395,0.12549,144.88,144.85,6.9035]
[1723599616591,32.07,144.89,144.85,6.9035]
[1723599617498,0.12549,144.89,144.85,6.9035]
[1723599617707,45.50196,144.89,144.85,6.9035]
[1723599618397,52.40386,144.89,144.85,6.9035]
[1723599618561,77.57196,144.89,144.83,15.1368]
[1723599618895,77.57196,144.89,144.83,22.0413]
[1723599618896,0.12549,144.87,144.83,22.0413]
[1723599619085,0.37647,144.87,144.84,6.904]
[1723599619395,0.37647,144.87,144.83,15.1368]
[1723599620191,7.27917,144.87,144.83,22.041]
[1723599620603,0.37647,144.87,144.83,22.041]
[1723599620900,45.37647,144.87,144.84,6.9041]
[1723599622196,32.19549,144.89,144.85,6.9034]
[1723599622197,32.07,144.89,144.85,6.9034]
[1723599622380,6.9007,144.92,144.87,6.9024]
[1723599622702,6.9007,144.92,144.85,17.2585]
[1723599622703,38.9709,144.91,144.86,6.903]
[1723599623597,45.50196,144.9,144.86,6.903]
[1723599623989,45.50196,144.9,144.87,6.9026]
[1723599624374,52.40326,144.9,144.85,17.2585]
[1723599624582,0.66682792,144.89,144.85,17.2585]
[1723599624775,0.12549,144.88,144.85,17.2585]
[1723599625291,0.25098,144.88,144.85,17.2585]
[1723599625479,0.25098,144.88,144.83,15.1368]
[1723599625480,7.15328,144.88,144.83,22.0413]
[1723599625678,7.15328,144.88,144.84,6.904]
[1723599626300,0.25098,144.88,144.84,6.904]
[1723599626474,45.25098,144.88,144.84,6.904]
[1723599628171,45.25098,144.88,144.83,15.1368]
[1723599628368,0.25098,144.88,144.85,6.9035]
[1723599628585,0.12549,144.88,144.84,6.904]
[1723599628906,45.25098,144.88,144.84,6.904]
[1723599629082,52.15328,144.88,144.84,6.904]
[1723599629677,52.15328,144.88,144.83,22.0414]
[1723599630791,0.25098,144.87,144.83,22.0414]
[1723599631986,13.08098,144.87,144.83,22.0414]
[1723599635580,19.98378,144.87,144.83,22.0414]
[1723599636304,0.12549,144.85,144.82,17.2621]
[1723599636515,0.91780792,144.85,144.82,17.2621]
[1723599636683,13.74780792,144.85,144.82,17.2621]
[1723599637389,13.74780792,144.85,144.8,6.906]
[1723599637590,13.74780792,144.85,144.75,16.4415]
[1723599637591,12.83,144.81,144.75,16.4415]
[1723599637893,0.66682792,144.8,144.77,6.9071]
[1723599638102,0.66682792,144.8,144.76,6.9076]
[1723599638320,0.12549,144.79,144.75,16.4415]
[1723599638488,19.86209,144.79,144.75,16.4415]
[1723599638689,7.15798,144.78,144.73,6.9093]
[1723599638905,7.15798,144.78,144.74,17.2711]
[1723599638906,45.0,144.78,144.74,17.2711]
[1723599639085,0.12549,144.79,144.76,6.9079]
[1723599639298,0.12549,144.79,144.74,17.2711]
[1723599639299,45.25098,144.79,144.75,6.9083]
[1723599639624,0.12549,144.77,144.74,17.2711]
[1723599639792,0.25098,144.77,144.74,17.2711]
[1723599640321,57.83,144.79,144.74,17.2711]
[1723599640615,57.83,144.79,144.74,24.1799]
[1723599640616,7.15798,144.78,144.74,24.1799]
[1723599640819,0.12549,144.78,144.74,17.2711]
[1723599641009,16.4079,144.82,144.74,17.2711]
[1723599641193,45.25098,144.81,144.77,6.9074]
[1723599641398,45.25098,144.81,144.75,1.3815222]
[1723599641399,52.15658,144.81,144.75,6.908]
[1723599641632,6.9062,144.8,144.75,6.908]
[1723599641803,0.12549,144.79,144.75,6.908]
[1723599642215,45.12549,144.81,144.76,6.9079]
[1723599642216,52.15658,144.81,144.76,6.9079]
[1723599642401,0.25098,144.8,144.76,6.9079]
[1723599643416,7.15708,144.8,144.76,6.9079]
[1723599643618,7.15708,144.8,144.75,6.9083]
[1723599644406,7.15708,144.8,144.74,24.1799]
[1723599644407,6.9066,144.79,144.74,24.1799]
[1723599644612,0.12549,144.77,144.73,6.9093]
[1723599645129,6.9086,144.75,144.71,22.5883]
[1723599645332,6.9081,144.76,144.71,29.4985]
[1723599645532,52.03389,144.75,144.71,16.4415]
[1723599645836,0.12549,144.74,144.71,33.7169]
[1723599646704,0.12549,144.74,144.71,40.6272]
[1723599647104,6.9095,144.73,144.68,6.9114]
[1723599647322,32.47647,144.74,144.67,23.0935]
[1723599647323,0.66682792,144.72,144.67,23.0935]
[1723599647507,7.57682792,144.72,144.67,16.1814]
[1723599647701,0.66682792,144.72,144.68,6.9117]
[1723599648132,0.66682792,144.72,144.69,6.9112]
[1723599648940,6.9077,144.77,144.67,16.1814]
[1723599649109,54.1728,144.8,144.75,6.9084]
[1723599649315,13.5665,144.82,144.77,6.9074]
[1723599649627,50.64860949,144.84,144.74,1.381554]
[1723599649838,6.9056,144.81,144.77,6.9074]
[1723599650405,6.905,144.83,144.78,6.9068]
[1723599650941,6.9053,144.82,144.77,6.9075]
[1723599651228,6.9053,144.82,144.76,17.2691]
[1723599651229,6.9057,144.81,144.76,24.177]
[1723599651432,6.9061,144.8,144.76,17.2691]
[1723599651810,6.9056,144.81,144.76,24.177]
[1723599652025,45.50196,144.8,144.76,24.177]
[1723599652233,45.37647,144.8,144.77,6.9074]
[1723599652441,0.37647,144.8,144.77,6.9074]
[1723599652931,0.37647,144.8,144.76,24.177]
[1723599654414,7.28257,144.8,144.76,24.177]
[1723599654617,7.28257,144.8,144.76,17.2691]
[1723599654935,0.37647,144.8,144.73,16.3167]
[1723599655164,6.9076,144.77,144.73,16.3167]
[1723599655339,0.66682792,144.76,144.73,16.3167]
[1723599655644,0.66682792,144.76,144.73,23.2259]
[1723599655933,45.0,144.77,144.73,33.5893]
[1723599656134,0.12549,144.78,144.73,16.3167]
[1723599656135,0.25098,144.78,144.73,16.3167]
[1723599656342,0.12549,144.76,144.73,16.3167]
[1723599656514,7.15908,144.76,144.73,16.3167]
[1723599657038,7.15908,144.76,144.71,12.9845]
[1723599657212,6.9084,144.75,144.71,6.0743]
[1723599657407,6.9084,144.75,144.7,24.1877]
[1723599657408,0.25098,144.74,144.7,24.1877]
[1723599658534,7.15988,144.74,144.7,24.1877]
[1723599658726,0.25098,144.74,144.7,24.1877]
[1723599659132,0.25098,144.74,144.71,6.9102]
[1723599659424,0.25098,144.74,144.7,24.1877]
[1723599659941,7.15998,144.74,144.7,17.277]
[1723599660438,45.12549,144.75,144.71,6.9103]
[1723599660633,45.0,144.75,144.71,6.9103]
[1723599660933,45.0,144.75,144.7,17.277]
[1723599661237,7.15988,144.74,144.7,24.1877]
[1723599661609,7.57652792,144.73,144.69,15.225]
[1723599662042,7.15998,144.74,144.69,22.1363]
[1723599662831,7.15998,144.74,144.7,6.9108]
[1723599663144,0.25098,144.74,144.71,6.9102]
[1723599663514,0.25098,144.74,144.7,6.9107]
[1723599664334,0.12549,144.74,144.7,6.9107]
[1723599664541,6.9081,144.76,144.71,6.9103]
[1723599665328,15.6607,144.78,144.71,6.9103]
[1723599665510,6.9085,144.75,144.71,6.9103]
[1723599665931,6.908,144.76,144.71,6.9103]
[1723599666644,32.1,144.79,144.71,6.9103]
[1723599666645,32.1,144.79,144.72,17.274]
[1723599666848,32.1,144.83,144.73,6.4435]
[1723599667016,6.2506,144.84,144.78,6.9069]
[1723599667341,6.9051,144.82,144.77,6.9074]
[1723599667512,6.9065,144.79,144.74,15.6296]
[1723599667710,6.9065,144.79,144.74,22.5381]
[1723599667938,32.1,144.83,144.76,6.9079]
[1723599668315,6.906,144.81,144.76,6.9079]
[1723599668515,6.9061,144.8,144.75,6.9083]
[1723599668731,0.12549,144.79,144.75,6.9083]
[1723599669127,7.03209,144.79,144.75,6.9083]
[1723599669332,0.12549,144.79,144.74,22.5384]
[1723599669541,0.12549,144.8,144.74,15.6296]
[1723599669719,7.03109,144.81,144.74,17.0110647]
[1723599669919,6.9056,144.81,144.74,15.6296]
[1723599670241,49.3573,144.87,144.74,15.6296]
[1723599670449,6.9042,144.84,144.79,6.9064]
[1723599670754,6.904,144.85,144.8,6.906]
[1723599671413,6.9041,144.84,144.79,17.2655]
[1723599671619,6.9041,144.84,144.79,24.1719]
[1723599671818,6.9046,144.83,144.79,17.2655]
[1723599672940,0.12549,144.84,144.8,6.9059]
[1723599673142,45.50196,144.84,144.8,6.9059]
[1723599673344,45.50196,144.84,144.79,17.2655]
[1723599673345,45.50196,144.84,144.76,17.2696]
[1723599673519,45.50196,144.84,144.77,21.38122317]
[1723599674149,45.50196,144.84,144.8,6.9059]
[1723599675241,45.37647,144.84,144.8,6.9059]
[1723599675443,52.28067,144.84,144.8,6.9059]
[1723599675638,52.28067,144.84,144.79,6.9064]
[1723599676029,6.905,144.83,144.78,24.1737]
[1723599676233,45.25098,144.82,144.77,6.9074]
[1723599676454,6.9063,144.8,144.75,24.1788]
[1723599676663,6.9065,144.79,144.75,24.1788]
[1723599676868,7.69881792,144.79,144.75,17.2708]
[1723599677345,7.03199,144.79,144.75,17.2708]
[1723599677547,0.12549,144.78,144.75,17.2708]
[1723599679257,0.79231792,144.78,144.75,17.2708]
[1723599679560,0.12549,144.78,144.75,17.2708]
[1723599681460,0.12549,144.78,144.76,6.9078]
[1723599682451,0.12549,144.78,144.75,24.1791]
[1723599683570,6.9016,144.9,144.78,16.6587]
[1723599683740,16.0159,144.94,144.79,20.0]
[1723599683741,32.1,144.87,144.79,20.0]
[1723599683946,32.1,144.85,144.78,16.6587]
[1723599684245,6.9051,144.82,144.77,17.2685]
[1723599684454,6.9057,144.81,144.76,6.1599]
[1723599684654,6.9057,144.81,144.76,6.9079]
[1723599684858,32.1,144.83,144.74,33.9307]
[1723599684859,6.9052,144.82,144.77,6.9074]
[1723599685038,0.25098,144.81,144.77,6.9074]
[1723599685676,0.25098,144.81,144.74,33.9307]
[1723599685677,45.12549,144.81,144.78,6.9068]
[1723599685975,0.12549,144.82,144.77,6.9071]
[1723599686267,0.25098,144.82,144.77,6.9071]
[1723599686640,0.25098,144.82,144.78,6.9068]
[1723599687156,0.12549,144.81,144.78,6.9068]
[1723599687555,48.1159,144.87,144.77,1.38139871]
[1723599687755,7.02879,144.86,144.81,6.9052]
[1723599687961,6.3782,144.88,144.84,6.904]
[1723599688152,6.3782,144.88,144.77,1.38111166]
[1723599688153,6.9022,144.88,144.83,6.9045]
[1723599689270,0.12549,144.87,144.84,6.9041]
[1723599689474,6.3782,144.91,144.86,6.9031]
[1723599689655,6.3782,144.91,144.87,6.9026]
[1723599689857,39.0004,144.92,144.87,6.9026]
[1723599690050,6.9008,144.91,144.86,6.9031]
[1723599690245,6.9014,144.9,144.84,17.2597]
[1723599691275,0.12549,144.89,144.84,17.2597]
[1723599692079,0.25098,144.89,144.85,6.9036]
[1723599693777,52.81970792,144.89,144.84,24.1638]
[1723599694154,52.81970792,144.89,144.85,6.9035]
[1723599694155,45.91780792,144.89,144.85,6.9035]
[1723599694367,45.25098,144.89,144.85,6.9035]
[1723599694750,0.91780792,144.88,144.84,24.1638]
[1723599695772,0.12549,144.87,144.83,6.9045]
[1723599695946,0.91780792,144.87,144.81,33.6668]
[1723599696151,0.12549,144.86,144.81,33.6668]
[1723599696466,0.25098,144.86,144.82,6.9047]
[1723599696674,0.12549,144.85,144.82,6.9047]
[1723599696978,0.91780792,144.85,144.82,6.9047]
[1723599697368,0.66682792,144.84,144.78,17.2671]
[1723599697581,0.12549,144.83,144.75,6.6381]
[1723599697750,0.12549,144.81,144.75,6.6381]
[1723599698076,7.03139,144.81,144.76,6.9079]
[1723599698265,45.37647,144.8,144.76,6.9079]
[1723599698973,0.66682792,144.79,144.76,6.9079]
[1723599699173,45.37647,144.8,144.77,6.9074]
[1723599699582,45.37647,144.8,144.73,16.0805]
[1723599699779,0.37647,144.8,144.73,16.0805]
[1723599700084,0.37647,144.8,144.78,6.9069]
[1723599700251,0.37647,144.8,144.79,6.9065]
[1723599700452,45.0,144.81,144.8,6.906]
[1723599700755,0.12549,144.83,144.8,6.906]
[1723599700958,45.50196,144.83,144.79,6.9065]
[1723599701878,52.40656,144.83,144.79,6.9065]
[1723599703770,45.12549,144.83,144.79,17.2656]
[1723599704070,7.02899,144.86,144.81,6.9051]
[1723599704271,0.12549,144.84,144.8,6.9059]
[1723599704676,0.12549,144.84,144.81,6.9055]
[1723599705189,0.25098,144.84,144.81,6.9055]
[1723599705776,0.12549,144.84,144.81,6.9055]
[1723599707674,6.9018,144.89,144.84,6.904]
[1723599708063,6.9023,144.88,144.84,6.904]
[1723599709878,7.15278,144.89,144.84,6.904]
[1723599710069,45.0,144.88,144.84,6.904]
[1723599712592,45.0,144.88,144.8,17.2645]
[1723599712593,0.12549,144.87,144.8,17.2645]
[1723599712797,33.26878792,144.87,144.79,15.0343]
[1723599712971,45.0,144.86,144.79,15.0343]
[1723599713173,0.50196,144.85,144.79,15.0343]
[1723599713389,6.9041,144.84,144.79,21.9405]
[1723599713584,0.79231792,144.83,144.79,15.0343]
[1723599714094,6.9056,144.81,144.77,17.2682]
[1723599714403,0.12549,144.82,144.75,16.0486]
[1723599714404,45.37647,144.8,144.75,16.0486]
[1723599714703,0.37647,144.79,144.74,17.2719]
[1723599714870,45.50196,144.79,144.74,17.2719]
[1723599715275,0.50196,144.79,144.74,17.2719]
[1723599715565,0.37647,144.79,144.75,6.908]
[1723599715789,0.25098,144.79,144.75,6.908]
[1723599717500,0.25098,144.79,144.76,6.9079]
[1723599718100,0.12549,144.79,144.77,6.9074]
[1723599718288,6.9051,144.82,144.77,24.1755]
[1723599718492,45.3267,144.84,144.79,6.9061]
[1723599718679,6.9047,144.83,144.79,6.9061]
[1723599718872,6.904,144.85,144.8,6.9059]
[1723599719080,6.4274,144.88,144.77,17.2685]
[1723599719081,38.5274,144.88,144.77,17.2685]
[1723599719383,32.1,144.86,144.77,17.2685]
[1723599719711,6.9037,144.85,144.8,6.9056]
[1723599720285,6.9042,144.84,144.79,24.1717]
[1723599720585,6.9037,144.85,144.8,6.906]
[1723599720797,52.02969,144.84,144.8,6.906]
[1723599721373,45.12549,144.84,144.8,6.906]
[1723599722806,52.02979,144.84,144.79,24.172]
[1723599723101,45.12549,144.84,144.8,6.906]
[1723599723272,0.12549,144.84,144.81,6.9055]
[1723599723879,6.9028,144.87,144.82,6.9049]
[1723599724894,6.9032,144.86,144.82,6.9049]
[1723599725412,6.9032,144.86,144.81,24.1687]
[1723599725713,7.28027,144.85,144.81,17.2633]
[1723599726007,52.40576,144.85,144.81,24.1687]
[1723599726201,52.15478,144.85,144.81,24.1687]
[1723599729406,51.15478,144.85,144.81,24.1687]
[1723599729908,51.15478,144.85,144.81,17.2633]
[1723599730613,51.15478,144.85,144.81,24.1687]
[1723599730797,45.0,144.85,144.81,24.1687]
[1723599731601,6.9041,144.84,144.8,6.9058]
[1723599731786,51.9038,144.85,144.8,6.9058]
[1723599732120,51.9038,144.85,144.81,6.9055]
[1723599733528,45.0,144.85,144.81,6.9055]
[1723599734528,0.12549,144.86,144.82,17.2618]
[1723599734811,0.12549,144.86,144.83,6.9045]
[1723599734992,0.12549,144.87,144.83,6.9045]
[1723599735197,0.25098,144.87,144.83,6.9045]
[1723599735599,0.12549,144.87,144.84,6.9039]
[1723599735809,0.12549,144.88,144.84,6.9039]
[1723599736110,7.02779,144.88,144.83,6.9045]
[1723599736484,6.9028,144.87,144.83,6.9045]
[1723599738321,7.02789,144.88,144.83,6.9045]
[1723599738607,32.1,144.9,144.84,17.2596]
[1723599738815,54.3906,144.92,144.84,17.2596]
[1723599739609,6.9026,144.88,144.84,17.2596]
[1723599744192,7.02819,144.87,144.82,6.9049]
[1723599744396,51.9027,144.87,144.79,15.1657]
[1723599744593,45.0,144.87,144.83,6.9045]
[1723599750411,12.83,144.9,144.84,1.3808266]
[1723599750737,12.83,144.9,144.81,21.38054453]